[Event "*** Titled Tuesday Blitz"]
[Site "Chess.com"]
[Date "2020.04.07"]
[Round "5"]
[White "AnonymousBread"]
[Black "Oleg_Papayan"]
[Result "1-0"]
[WhiteElo "2527"]
[BlackElo "2336"]
[TimeControl "180+1"]
[EndTime "13:55:40 PDT"]
[Termination "AnonymousBread won by resignation"]

1. d4 {[%clk 0:03:00.9]} 1... Nf6 {[%clk 0:02:56.8]} 2. Nc3 {[%clk 0:02:59.4]}
2... d5 {[%clk 0:02:56.1]} 3. Bf4 {[%clk 0:02:58.9]} 3... e6 {[%clk 0:02:48.4]}
4. e3 {[%clk 0:02:59.2]} 4... Be7 {[%clk 0:02:41.3]} 5. Nf3 {[%clk 0:02:58.9]}
5... O-O {[%clk 0:02:41.6]} 6. Bd3 {[%clk 0:02:59.1]} 6... b6 {[%clk 0:02:42]}
7. O-O {[%clk 0:02:59]} 7... Bb7 {[%clk 0:02:42.7]} 8. Re1 {[%clk 0:02:58]} 8...
Nbd7 {[%clk 0:02:43]} 9. e4 {[%clk 0:02:58.1]} 9... dxe4 {[%clk 0:02:42.6]} 10.
Nxe4 {[%clk 0:02:59]} 10... Nxe4 {[%clk 0:02:36.4]} 11. Bxe4 {[%clk 0:02:59.9]}
11... Bxe4 {[%clk 0:02:36.6]} 12. Rxe4 {[%clk 0:03:00.8]} 12... c5 {[%clk
0:02:31.7]} 13. c3 {[%clk 0:03:00.5]} 13... Nf6 {[%clk 0:02:31.1]} 14. Re1
{[%clk 0:02:59]} 14... Nd5 {[%clk 0:02:01.6]} 15. Bg3 {[%clk 0:02:57.1]} 15...
cxd4 {[%clk 0:02:01.9]} 16. Nxd4 {[%clk 0:02:58]} 16... Qd7 {[%clk 0:01:55.4]}
17. Qf3 {[%clk 0:02:56.1]} 17... Bf6 {[%clk 0:01:51.4]} 18. Rad1 {[%clk
0:02:56.2]} 18... Qa4 {[%clk 0:01:49.3]} 19. a3 {[%clk 0:02:32]} 19... Rac8
{[%clk 0:01:48.9]} 20. h3 {[%clk 0:02:27.8]} 20... h6 {[%clk 0:01:43.9]} 21. Rd2
{[%clk 0:02:21.6]} 21... Bg5 {[%clk 0:01:35]} 22. Rde2 {[%clk 0:02:19.1]} 22...
Bf6 {[%clk 0:01:31.2]} 23. Be5 {[%clk 0:02:16.6]} 23... Bxe5 {[%clk 0:01:28]}
24. Rxe5 {[%clk 0:02:17.5]} 24... Qc4 {[%clk 0:01:14.8]} 25. Qg4 {[%clk
0:02:04.5]} 25... Nf6 {[%clk 0:01:10.5]} 26. Qg3 {[%clk 0:02:00.6]} 26... Rfd8
{[%clk 0:01:10.1]} 27. R1e3 {[%clk 0:01:52.9]} 27... Rd5 {[%clk 0:01:09.1]} 28.
Rf3 {[%clk 0:01:26.2]} 28... Rxe5 {[%clk 0:01:06.7]} 29. Qxe5 {[%clk 0:01:27.1]}
29... Qd5 {[%clk 0:01:07.1]} 30. Qe3 {[%clk 0:01:22.8]} 30... Rd8 {[%clk
0:01:01.3]} 31. Rg3 {[%clk 0:01:18]} 31... Ne4 {[%clk 0:00:44.4]} 32. Rg4 {[%clk
0:01:12.6]} 32... f5 {[%clk 0:00:41.5]} 33. Rg6 {[%clk 0:01:09.9]} 33... Ng5
{[%clk 0:00:22.1]} 34. h4 {[%clk 0:01:01.4]} 34... Kh7 {[%clk 0:00:16.3]} 35.
Rxg7+ {[%clk 0:00:36.2]} 35... Kxg7 {[%clk 0:00:16]} 36. hxg5 {[%clk 0:00:37.1]}
36... Qe4 {[%clk 0:00:13.2]} 37. Qxe4 {[%clk 0:00:35.5]} 1-0

[Event "*** Titled Tuesday Blitz"]
[Site "Chess.com"]
[Date "2020.04.07"]
[Round "5"]
[White "checkmatequen"]
[Black "Crazy_girl99"]
[Result "1-0"]
[WhiteElo "2260"]
[BlackElo "2463"]
[TimeControl "180+1"]
[EndTime "13:55:40 PDT"]
[Termination "checkmatequen won by checkmate"]

1. e4 {[%clk 0:03:00.9]} 1... e5 {[%clk 0:02:58.2]} 2. Nf3 {[%clk 0:02:56.7]}
2... Nc6 {[%clk 0:02:57.8]} 3. Bb5 {[%clk 0:02:55.1]} 3... a6 {[%clk 0:02:57.5]}
4. Ba4 {[%clk 0:02:52.5]} 4... Nf6 {[%clk 0:02:57.6]} 5. d3 {[%clk 0:02:50.3]}
5... b5 {[%clk 0:02:57.2]} 6. Bb3 {[%clk 0:02:50.6]} 6... Be7 {[%clk 0:02:57.6]}
7. c3 {[%clk 0:02:50.4]} 7... d6 {[%clk 0:02:58.1]} 8. O-O {[%clk 0:02:47.4]}
8... O-O {[%clk 0:02:57.8]} 9. Re1 {[%clk 0:02:46.1]} 9... h6 {[%clk 0:02:57.5]}
10. Nbd2 {[%clk 0:02:46.5]} 10... Be6 {[%clk 0:02:57.8]} 11. Bc2 {[%clk
0:02:45.4]} 11... Qc8 {[%clk 0:02:57.6]} 12. Nf1 {[%clk 0:02:45.7]} 12... Rd8
{[%clk 0:02:54.9]} 13. d4 {[%clk 0:02:45.6]} 13... exd4 {[%clk 0:02:49.5]} 14.
cxd4 {[%clk 0:02:46.5]} 14... Nb4 {[%clk 0:02:48.5]} 15. Bb1 {[%clk 0:02:45]}
15... a5 {[%clk 0:02:05.4]} 16. a3 {[%clk 0:02:43.1]} 16... Na6 {[%clk
0:02:04.8]} 17. d5 {[%clk 0:02:43.2]} 17... Bg4 {[%clk 0:02:04.2]} 18. h3 {[%clk
0:02:43.5]} 18... Bh5 {[%clk 0:01:55.8]} 19. Ng3 {[%clk 0:02:43.2]} 19... Bg6
{[%clk 0:01:55.1]} 20. Nh4 {[%clk 0:02:39.8]} 20... Bh7 {[%clk 0:01:54.1]} 21.
Nhf5 {[%clk 0:02:39.7]} 21... Bf8 {[%clk 0:01:54]} 22. Qf3 {[%clk 0:02:38]}
22... Nd7 {[%clk 0:01:50.4]} 23. Bf4 {[%clk 0:02:11.1]} 23... Nac5 {[%clk
0:01:42.5]} 24. Nh5 {[%clk 0:01:42]} 24... Kh8 {[%clk 0:01:07.1]} 25. Qg3 {[%clk
0:01:34]} 25... Bg6 {[%clk 0:01:05.5]} 26. Qh4 {[%clk 0:01:17.5]} 26... Bxh5
{[%clk 0:01:00.5]} 27. Qxh5 {[%clk 0:01:14]} 27... Kg8 {[%clk 0:00:33.4]} 28. e5
{[%clk 0:00:51.4]} 28... dxe5 {[%clk 0:00:31.5]} 29. Bxh6 {[%clk 0:00:48.1]}
29... Nf6 {[%clk 0:00:29.8]} 30. Qg5 {[%clk 0:00:45.3]} 30... Nh7 {[%clk
0:00:28.7]} 31. Ne7+ {[%clk 0:00:40.6]} 31... Kh8 {[%clk 0:00:26.8]} 32. Bxh7
{[%clk 0:00:31.4]} 32... Qd7 {[%clk 0:00:20.5]} 33. Nf5 {[%clk 0:00:28.6]} 33...
f6 {[%clk 0:00:19.6]} 34. Qg6 {[%clk 0:00:26.7]} 34... gxh6 {[%clk 0:00:19.4]}
35. Qg8# {[%clk 0:00:26.2]} 1-0

[Event "*** Titled Tuesday Blitz"]
[Site "Chess.com"]
[Date "2020.04.07"]
[Round "5"]
[White "Sunnika"]
[Black "SergioGarciaFuentes"]
[Result "1-0"]
[WhiteElo "2360"]
[BlackElo "2197"]
[TimeControl "180+1"]
[EndTime "13:55:41 PDT"]
[Termination "Sunnika won by resignation"]

1. d4 {[%clk 0:03:00.9]} 1... d5 {[%clk 0:02:58.5]} 2. Nf3 {[%clk 0:03:00]} 2...
Nf6 {[%clk 0:02:50.3]} 3. c4 {[%clk 0:03:00.3]} 3... c6 {[%clk 0:02:49.7]} 4. e3
{[%clk 0:02:58.7]} 4... a6 {[%clk 0:02:46.1]} 5. Nbd2 {[%clk 0:02:57.7]} 5... g6
{[%clk 0:02:44.5]} 6. Bd3 {[%clk 0:02:55.5]} 6... Bg7 {[%clk 0:02:44.4]} 7. O-O
{[%clk 0:02:55.6]} 7... O-O {[%clk 0:02:44]} 8. b3 {[%clk 0:02:55.8]} 8... c5
{[%clk 0:02:40.3]} 9. Bb2 {[%clk 0:02:55.4]} 9... cxd4 {[%clk 0:02:39.6]} 10.
Bxd4 {[%clk 0:02:51.4]} 10... Nc6 {[%clk 0:02:38.2]} 11. Bb2 {[%clk 0:02:51.8]}
11... Nb4 {[%clk 0:02:26.6]} 12. Be2 {[%clk 0:02:48.4]} 12... Bf5 {[%clk
0:02:16.5]} 13. a3 {[%clk 0:02:42.1]} 13... Nd3 {[%clk 0:02:06.9]} 14. Bd4
{[%clk 0:02:41.6]} 14... Rc8 {[%clk 0:01:50.1]} 15. Nh4 {[%clk 0:02:29.7]} 15...
Nc5 {[%clk 0:01:13.9]} 16. Nxf5 {[%clk 0:02:28.6]} 16... gxf5 {[%clk 0:01:14.8]}
17. cxd5 {[%clk 0:02:22.4]} 17... Nxd5 {[%clk 0:01:01.6]} 18. Bxg7 {[%clk
0:02:21.4]} 18... Kxg7 {[%clk 0:01:02.5]} 19. Qc2 {[%clk 0:02:10.9]} 19... e6
{[%clk 0:00:54.3]} 20. Bf3 {[%clk 0:01:59.2]} 20... Ne4 {[%clk 0:00:32.8]} 21.
Qb2+ {[%clk 0:01:56.6]} 21... Qf6 {[%clk 0:00:33.3]} 22. Qxf6+ {[%clk
0:01:55.2]} 22... Ndxf6 {[%clk 0:00:33.6]} 23. Nc4 {[%clk 0:01:37.5]} 23... b5
{[%clk 0:00:28.8]} 24. Na5 {[%clk 0:01:32.3]} 24... Nd2 {[%clk 0:00:28.5]} 25.
Rfd1 {[%clk 0:01:30.1]} 25... Nxf3+ {[%clk 0:00:28.7]} 26. gxf3 {[%clk 0:01:31]}
26... Rfd8 {[%clk 0:00:28.5]} 27. Rxd8 {[%clk 0:01:26]} 27... Rxd8 {[%clk
0:00:29.4]} 28. Rc1 {[%clk 0:01:25.2]} 28... Rd6 {[%clk 0:00:27.5]} 29. Kf1
{[%clk 0:01:21.2]} 29... Nd5 {[%clk 0:00:21.5]} 30. Ke2 {[%clk 0:01:19.6]} 30...
b4 {[%clk 0:00:21.5]} 31. axb4 {[%clk 0:01:10.2]} 31... Nxb4 {[%clk 0:00:22.4]}
32. Rc4 {[%clk 0:01:05.8]} 32... Nd5 {[%clk 0:00:21.7]} 33. Rc6 {[%clk 0:00:57]}
33... Rxc6 {[%clk 0:00:20.2]} 34. Nxc6 {[%clk 0:00:57.3]} 34... Kf8 {[%clk
0:00:12.8]} 35. Kd3 {[%clk 0:00:56.3]} 35... Kg7 {[%clk 0:00:11.3]} 36. Kc4
{[%clk 0:00:55.8]} 36... Kf6 {[%clk 0:00:11]} 37. Kc5 {[%clk 0:00:54.5]} 37...
Kg5 {[%clk 0:00:10.9]} 38. Nd8 {[%clk 0:00:48.6]} 38... f6 {[%clk 0:00:09.8]}
39. Nxe6+ {[%clk 0:00:47.9]} 1-0

[Event "*** Titled Tuesday Blitz"]
[Site "Chess.com"]
[Date "2020.04.07"]
[Round "5"]
[White "rpragchess"]
[Black "Willychess95"]
[Result "1-0"]
[WhiteElo "2800"]
[BlackElo "2612"]
[TimeControl "180+1"]
[EndTime "13:55:42 PDT"]
[Termination "rpragchess won on time"]

1. Nf3 {[%clk 0:03:00.9]} 1... Nf6 {[%clk 0:02:56.4]} 2. g3 {[%clk 0:03:00.5]}
2... b5 {[%clk 0:02:52.7]} 3. Bg2 {[%clk 0:02:58.2]} 3... Bb7 {[%clk 0:02:51.7]}
4. d3 {[%clk 0:02:58.3]} 4... e6 {[%clk 0:02:51.6]} 5. O-O {[%clk 0:02:57.2]}
5... d5 {[%clk 0:02:49.9]} 6. a4 {[%clk 0:02:42]} 6... b4 {[%clk 0:02:49.9]} 7.
Nbd2 {[%clk 0:02:39.5]} 7... a5 {[%clk 0:02:48]} 8. e4 {[%clk 0:02:39.1]} 8...
Be7 {[%clk 0:02:41.2]} 9. Re1 {[%clk 0:02:33.8]} 9... O-O {[%clk 0:02:37.9]} 10.
exd5 {[%clk 0:02:28.1]} 10... Bxd5 {[%clk 0:02:35.2]} 11. Ne5 {[%clk 0:02:18.4]}
11... Bxg2 {[%clk 0:02:31.2]} 12. Kxg2 {[%clk 0:02:19.3]} 12... Ra6 {[%clk
0:02:23.1]} 13. Qf3 {[%clk 0:02:17.4]} 13... Nd5 {[%clk 0:02:08.5]} 14. Ndc4
{[%clk 0:02:11]} 14... Bf6 {[%clk 0:02:03.6]} 15. h4 {[%clk 0:02:03]} 15... h6
{[%clk 0:01:59.9]} 16. Ng4 {[%clk 0:01:51.9]} 16... Nd7 {[%clk 0:01:52]} 17. Bd2
{[%clk 0:01:29.8]} 17... N7b6 {[%clk 0:01:23.9]} 18. Nce5 {[%clk 0:01:13.7]}
18... Bxe5 {[%clk 0:01:06.3]} 19. Rxe5 {[%clk 0:01:13.1]} 19... f5 {[%clk
0:00:52.9]} 20. Nxh6+ {[%clk 0:01:03.5]} 20... gxh6 {[%clk 0:00:47.2]} 21. Rxe6
{[%clk 0:01:04]} 21... Rf6 {[%clk 0:00:44.7]} 22. Rae1 {[%clk 0:01:02.9]} 22...
Kg7 {[%clk 0:00:21.2]} 23. c4 {[%clk 0:00:46]} 23... bxc3 {[%clk 0:00:19.7]} 24.
bxc3 {[%clk 0:00:46.2]} 24... Qd7 {[%clk 0:00:12.8]} 25. R6e5 {[%clk 0:00:42.6]}
25... Ra8 {[%clk 0:00:05.8]} 26. c4 {[%clk 0:00:42.5]} 26... Re6 {[%clk
0:00:02.5]} 27. Rxe6 {[%clk 0:00:40.6]} 1-0

[Event "*** Titled Tuesday Blitz"]
[Site "Chess.com"]
[Date "2020.04.07"]
[Round "5"]
[White "cassoulet"]
[Black "Alvarov79"]
[Result "1-0"]
[WhiteElo "2715"]
[BlackElo "2297"]
[TimeControl "180+1"]
[EndTime "13:55:43 PDT"]
[Termination "cassoulet won on time"]

1. e4 {[%clk 0:03:00.9]} 1... c5 {[%clk 0:02:59]} 2. Nf3 {[%clk 0:03:01]} 2...
Nc6 {[%clk 0:02:58.8]} 3. Bb5 {[%clk 0:03:00.9]} 3... g6 {[%clk 0:02:57.5]} 4.
O-O {[%clk 0:03:01.3]} 4... Bg7 {[%clk 0:02:57.2]} 5. Re1 {[%clk 0:03:01.9]}
5... Nf6 {[%clk 0:02:57.7]} 6. c3 {[%clk 0:03:02.3]} 6... O-O {[%clk 0:02:56.7]}
7. e5 {[%clk 0:03:02.7]} 7... Nd5 {[%clk 0:02:55.2]} 8. h3 {[%clk 0:03:02.5]}
8... Qb6 {[%clk 0:02:51.3]} 9. Bf1 {[%clk 0:03:01.3]} 9... d6 {[%clk 0:02:48.2]}
10. Na3 {[%clk 0:02:52]} 10... Qd8 {[%clk 0:02:43.9]} 11. exd6 {[%clk
0:02:51.1]} 11... exd6 {[%clk 0:02:42.5]} 12. Nc4 {[%clk 0:02:50.7]} 12... Nb6
{[%clk 0:02:40.8]} 13. Nxb6 {[%clk 0:02:45.6]} 13... Qxb6 {[%clk 0:02:38.7]} 14.
d3 {[%clk 0:02:45.3]} 14... Qc7 {[%clk 0:02:31.9]} 15. Bf4 {[%clk 0:02:45.1]}
15... Be6 {[%clk 0:02:23.7]} 16. Qd2 {[%clk 0:02:44.5]} 16... Rfe8 {[%clk
0:02:20.2]} 17. d4 {[%clk 0:02:43.1]} 17... cxd4 {[%clk 0:02:14.4]} 18. cxd4
{[%clk 0:02:44]} 18... Ne7 {[%clk 0:02:12.8]} 19. Rac1 {[%clk 0:02:37.1]} 19...
Qd8 {[%clk 0:02:12.2]} 20. Bh6 {[%clk 0:02:32.8]} 20... Bxa2 {[%clk 0:02:00.7]}
21. Bxg7 {[%clk 0:02:31.1]} 21... Kxg7 {[%clk 0:01:59.6]} 22. Qf4 {[%clk
0:02:24.3]} 22... Bd5 {[%clk 0:01:55.8]} 23. Ng5 {[%clk 0:02:18]} 23... Qd7
{[%clk 0:01:51.6]} 24. Qh4 {[%clk 0:02:02]} 24... h6 {[%clk 0:01:47.7]} 25. Ne4
{[%clk 0:02:01.5]} 25... Bxe4 {[%clk 0:01:46.5]} 26. Qxe4 {[%clk 0:02:00.9]}
26... Nf5 {[%clk 0:01:41]} 27. Qd5 {[%clk 0:01:59.9]} 27... Rxe1 {[%clk
0:01:31.6]} 28. Rxe1 {[%clk 0:02:00.8]} 28... Rd8 {[%clk 0:01:18.2]} 29. Bc4
{[%clk 0:01:56.8]} 29... Rf8 {[%clk 0:01:15.4]} 30. Bb5 {[%clk 0:01:52.4]} 30...
Qc7 {[%clk 0:01:07.2]} 31. Bd3 {[%clk 0:01:51.6]} 31... Ne7 {[%clk 0:01:01.3]}
32. Qe4 {[%clk 0:01:51.5]} 32... Nc6 {[%clk 0:00:59.2]} 33. Rc1 {[%clk
0:01:45.3]} 33... Qb6 {[%clk 0:00:46.8]} 34. d5 {[%clk 0:01:33.6]} 34... Ne5
{[%clk 0:00:46.5]} 35. Bb1 {[%clk 0:01:31.2]} 35... Qxb2 {[%clk 0:00:34.5]} 36.
Rc7 {[%clk 0:01:30.8]} 36... Qb6 {[%clk 0:00:30.5]} 37. Re7 {[%clk 0:01:30.7]}
37... Kg8 {[%clk 0:00:23.5]} 38. Bc2 {[%clk 0:01:26.3]} 38... Qa6 {[%clk
0:00:17.9]} 39. Kh2 {[%clk 0:01:24.6]} 39... Qf1 {[%clk 0:00:14.5]} 40. f4
{[%clk 0:01:19.2]} 40... f5 {[%clk 0:00:13]} 41. Qd4 {[%clk 0:01:13.4]} 41...
Qe2 {[%clk 0:00:08.5]} 42. fxe5 {[%clk 0:01:11]} 42... Qxc2 {[%clk 0:00:07.7]}
43. e6 {[%clk 0:01:08.8]} 1-0

[Event "*** Titled Tuesday Blitz"]
[Site "Chess.com"]
[Date "2020.04.07"]
[Round "5"]
[White "Malev212"]
[Black "jonaszmb"]
[Result "1-0"]
[WhiteElo "2600"]
[BlackElo "2401"]
[TimeControl "180+1"]
[EndTime "13:55:44 PDT"]
[Termination "Malev212 won by resignation"]

1. c4 {[%clk 0:03:00.2]} 1... e6 {[%clk 0:02:58.4]} 2. g3 {[%clk 0:02:58.4]}
2... Nf6 {[%clk 0:02:58.2]} 3. Bg2 {[%clk 0:02:57.5]} 3... d5 {[%clk 0:02:58.4]}
4. Nf3 {[%clk 0:02:58]} 4... dxc4 {[%clk 0:02:57.4]} 5. Qc2 {[%clk 0:02:57.4]}
5... Nbd7 {[%clk 0:02:56.6]} 6. Qxc4 {[%clk 0:02:54.5]} 6... a6 {[%clk
0:02:56.4]} 7. O-O {[%clk 0:02:47.9]} 7... b5 {[%clk 0:02:55.2]} 8. Qc6 {[%clk
0:02:42]} 8... Rb8 {[%clk 0:02:53.9]} 9. d3 {[%clk 0:02:28.6]} 9... Bb7 {[%clk
0:02:53.7]} 10. Qc2 {[%clk 0:02:28.1]} 10... c5 {[%clk 0:02:50.3]} 11. b3 {[%clk
0:02:27.7]} 11... Bd6 {[%clk 0:02:47.2]} 12. Bb2 {[%clk 0:02:27.3]} 12... O-O
{[%clk 0:02:47.1]} 13. Nbd2 {[%clk 0:02:27.9]} 13... Nb6 {[%clk 0:02:38.9]} 14.
Rac1 {[%clk 0:02:24.5]} 14... Rc8 {[%clk 0:02:38.8]} 15. Qb1 {[%clk 0:02:20.5]}
15... Qe7 {[%clk 0:02:34.6]} 16. Qa1 {[%clk 0:02:18.7]} 16... a5 {[%clk
0:02:23.2]} 17. Ne4 {[%clk 0:02:16.1]} 17... Bxe4 {[%clk 0:01:52.8]} 18. dxe4
{[%clk 0:02:14.8]} 18... Bb8 {[%clk 0:01:49.3]} 19. a4 {[%clk 0:02:06.7]} 19...
bxa4 {[%clk 0:01:41.7]} 20. bxa4 {[%clk 0:02:06.4]} 20... Rfd8 {[%clk
0:01:38.4]} 21. Bc3 {[%clk 0:02:00.4]} 21... c4 {[%clk 0:01:06.6]} 22. Bxa5
{[%clk 0:01:51.6]} 22... Ba7 {[%clk 0:01:03.7]} 23. e5 {[%clk 0:01:32.2]} 23...
Nfd5 {[%clk 0:01:03]} 24. Nd4 {[%clk 0:01:30.8]} 24... Nd7 {[%clk 0:00:52.5]}
25. Nb5 {[%clk 0:01:27.2]} 25... Bc5 {[%clk 0:00:52.6]} 26. Bxd8 {[%clk
0:01:21.5]} 26... Qxd8 {[%clk 0:00:51.4]} 27. Nd6 {[%clk 0:01:15.7]} 27... Bxd6
{[%clk 0:00:47.7]} 28. exd6 {[%clk 0:01:15.3]} 28... Qb6 {[%clk 0:00:39.1]} 29.
Rfd1 {[%clk 0:01:12.1]} 29... Nc5 {[%clk 0:00:26.6]} 30. Rxc4 {[%clk 0:01:06.2]}
30... Rd8 {[%clk 0:00:24.7]} 31. Bxd5 {[%clk 0:01:04]} 31... Qxd6 {[%clk
0:00:15.3]} 32. Rxc5 {[%clk 0:01:01.1]} 32... Qxc5 {[%clk 0:00:15.9]} 33. Bf3
{[%clk 0:00:59.5]} 33... Rb8 {[%clk 0:00:15.8]} 34. a5 {[%clk 0:00:58.3]} 34...
e5 {[%clk 0:00:15]} 35. a6 {[%clk 0:00:57.9]} 35... Qa7 {[%clk 0:00:14.4]} 36.
Qxe5 {[%clk 0:00:56.2]} 36... Rf8 {[%clk 0:00:14.2]} 37. Bb7 {[%clk 0:00:54.4]}
1-0

[Event "*** Titled Tuesday Blitz"]
[Site "Chess.com"]
[Date "2020.04.07"]
[Round "5"]
[White "SavelievAlexei"]
[Black "almo64"]
[Result "0-1"]
[WhiteElo "2425"]
[BlackElo "2700"]
[TimeControl "180+1"]
[EndTime "13:55:45 PDT"]
[Termination "almo64 won by resignation"]

1. e4 {[%clk 0:03:00.9]} 1... c5 {[%clk 0:02:59.4]} 2. Nf3 {[%clk 0:03:00.4]}
2... Nc6 {[%clk 0:02:59.8]} 3. Nc3 {[%clk 0:02:54.6]} 3... Nf6 {[%clk
0:02:57.6]} 4. d4 {[%clk 0:02:53.4]} 4... cxd4 {[%clk 0:02:57.7]} 5. Nxd4 {[%clk
0:02:53.4]} 5... d6 {[%clk 0:02:58]} 6. Bg5 {[%clk 0:02:48.8]} 6... Bd7 {[%clk
0:02:58.1]} 7. Qd2 {[%clk 0:02:47.3]} 7... a6 {[%clk 0:02:58]} 8. O-O-O {[%clk
0:02:42.6]} 8... e6 {[%clk 0:02:58.1]} 9. f4 {[%clk 0:02:42.1]} 9... Be7 {[%clk
0:02:55.4]} 10. Nxc6 {[%clk 0:02:24.8]} 10... Bxc6 {[%clk 0:02:53.6]} 11. Bd3
{[%clk 0:02:23.1]} 11... h6 {[%clk 0:02:44.1]} 12. Bh4 {[%clk 0:02:19.3]} 12...
g5 {[%clk 0:02:38.7]} 13. fxg5 {[%clk 0:02:19.4]} 13... Ng4 {[%clk 0:02:38.8]}
14. Ne2 {[%clk 0:02:02.1]} 14... Bxg5 {[%clk 0:02:29.8]} 15. Bxg5 {[%clk
0:02:00.8]} 15... Qxg5 {[%clk 0:02:29.4]} 16. Nf4 {[%clk 0:01:48]} 16... O-O-O
{[%clk 0:02:27]} 17. h3 {[%clk 0:01:45.4]} 17... Ne5 {[%clk 0:02:26.3]} 18. g4
{[%clk 0:01:43.9]} 18... d5 {[%clk 0:01:41.7]} 19. exd5 {[%clk 0:01:36]} 19...
Bxd5 {[%clk 0:01:41.9]} 20. Rhf1 {[%clk 0:01:26.5]} 20... Bc6 {[%clk 0:01:37.7]}
21. Kb1 {[%clk 0:01:16.4]} 21... Rd4 {[%clk 0:01:31.1]} 22. Ne2 {[%clk
0:00:49.2]} 22... Qxd2 {[%clk 0:01:24.7]} 23. Rxd2 {[%clk 0:00:50.1]} 23... Rd7
{[%clk 0:01:22.3]} 24. Nf4 {[%clk 0:00:49.1]} 24... Bb5 {[%clk 0:01:05.8]} 25.
Rff2 {[%clk 0:00:15.4]} 25... Rhd8 {[%clk 0:01:05.1]} 26. Kc1 {[%clk 0:00:14.6]}
26... Nxd3+ {[%clk 0:01:01.6]} 27. cxd3 {[%clk 0:00:14.2]} 27... Kb8 {[%clk
0:00:46.2]} 28. Rf3 {[%clk 0:00:14.2]} 28... e5 {[%clk 0:00:44.9]} 29. Nh5
{[%clk 0:00:11.3]} 29... e4 {[%clk 0:00:44.4]} 30. Rf6 {[%clk 0:00:11.2]} 30...
e3 {[%clk 0:00:42.1]} 31. Re2 {[%clk 0:00:10.9]} 31... Rc7+ {[%clk 0:00:42.1]}
32. Rc2 {[%clk 0:00:07.2]} 32... e2 {[%clk 0:00:42.3]} 0-1

[Event "*** Titled Tuesday Blitz"]
[Site "Chess.com"]
[Date "2020.04.07"]
[Round "5"]
[White "Shivagami"]
[Black "SCIM"]
[Result "0-1"]
[WhiteElo "2167"]
[BlackElo "2485"]
[TimeControl "180+1"]
[EndTime "13:55:45 PDT"]
[Termination "SCIM won on time"]

1. d4 {[%clk 0:03:00.9]} 1... Nf6 {[%clk 0:02:58.3]} 2. Bf4 {[%clk 0:03:01.2]}
2... d5 {[%clk 0:02:56.8]} 3. e3 {[%clk 0:03:01.5]} 3... e6 {[%clk 0:02:56.6]}
4. Nd2 {[%clk 0:03:01.2]} 4... Bd6 {[%clk 0:02:57.1]} 5. Bg3 {[%clk 0:03:01.3]}
5... c5 {[%clk 0:02:55.3]} 6. c3 {[%clk 0:03:01.1]} 6... O-O {[%clk 0:02:52.6]}
7. Bd3 {[%clk 0:03:00.7]} 7... b6 {[%clk 0:02:51.4]} 8. Qe2 {[%clk 0:02:55.8]}
8... a5 {[%clk 0:02:46.9]} 9. e4 {[%clk 0:02:41.8]} 9... Be7 {[%clk 0:02:31]}
10. Ngf3 {[%clk 0:02:19.8]} 10... Ba6 {[%clk 0:02:27.7]} 11. e5 {[%clk
0:02:17.4]} 11... Bxd3 {[%clk 0:02:17.2]} 12. Qxd3 {[%clk 0:02:15.8]} 12... Nfd7
{[%clk 0:02:17.8]} 13. O-O {[%clk 0:02:08]} 13... Nc6 {[%clk 0:02:17.2]} 14. a3
{[%clk 0:02:00.5]} 14... Qc7 {[%clk 0:02:15.1]} 15. Ne1 {[%clk 0:01:49.6]} 15...
Rfb8 {[%clk 0:02:07.3]} 16. f4 {[%clk 0:01:46.9]} 16... cxd4 {[%clk 0:02:07.2]}
17. cxd4 {[%clk 0:01:38]} 17... Nxd4 {[%clk 0:02:06.8]} 18. Bf2 {[%clk
0:01:24.5]} 18... Nf5 {[%clk 0:01:51.2]} 19. g4 {[%clk 0:01:17.1]} 19... Nh6
{[%clk 0:01:49.9]} 20. Rc1 {[%clk 0:01:10.7]} 20... Nc5 {[%clk 0:01:43.5]} 21.
Qh3 {[%clk 0:01:09.3]} 21... Qd7 {[%clk 0:01:41]} 22. Ndf3 {[%clk 0:00:56.1]}
22... Ne4 {[%clk 0:01:37.1]} 23. Nd4 {[%clk 0:00:50.6]} 23... Bc5 {[%clk
0:01:32]} 24. Nef3 {[%clk 0:00:45.9]} 24... Nxf2 {[%clk 0:01:23.3]} 25. Rxf2
{[%clk 0:00:45.7]} 25... Rc8 {[%clk 0:01:23]} 26. Rfc2 {[%clk 0:00:25.3]} 26...
Bxd4+ {[%clk 0:01:11.7]} 27. Nxd4 {[%clk 0:00:21.2]} 27... Rxc2 {[%clk
0:01:11.2]} 28. Rxc2 {[%clk 0:00:20.8]} 28... Rc8 {[%clk 0:01:11.9]} 29. g5
{[%clk 0:00:12.8]} 29... Rxc2 {[%clk 0:01:03.1]} 30. Nxc2 {[%clk 0:00:12.9]}
30... Nf5 {[%clk 0:01:02.6]} 31. Qc3 {[%clk 0:00:13]} 31... d4 {[%clk
0:00:59.5]} 32. Qc4 {[%clk 0:00:12.2]} 32... d3 {[%clk 0:00:56.4]} 33. Qa6
{[%clk 0:00:06.1]} 33... g6 {[%clk 0:00:53.9]} 34. Na1 {[%clk 0:00:01.3]} 34...
d2 {[%clk 0:00:52.8]} 0-1